fUST/lending_fUST_20240831
["ID","MTS","AMOUNT","RATE_DAILY","PERIOD"]
[336719475,1725069046109,-500.0,0.00032876,31]
[336719476,1725069046121,-500.0,0.00032876,7]
[336719477,1725069046136,-500.0,0.00032876,31]
[336719478,1725069046147,-500.0,0.00032876,31]
[336719479,1725069046157,-500.0,0.00032876,31]
[336719480,1725069046168,-500.0,0.00032876,31]
[336719481,1725069046177,-500.0,0.00032876,31]
[336719483,1725069046187,-500.0,0.00032876,31]
[336719484,1725069046196,-500.0,0.00032876,31]
[336719485,1725069046205,-500.0,0.00032876,31]
[336719486,1725069046214,-500.0,0.00032876,31]
[336719487,1725069046223,-503.39493849,0.00032876,31]
[336719488,1725069046233,-506.13179315,0.00032876,31]
[336719489,1725069046242,-501.52259266,0.00032876,31]
[336719490,1725069046252,-501.90736599,0.00032876,31]
[336719491,1725069046262,-500.0,0.00032876,31]
[336719498,1725069046323,-500.0,0.00032876,31]
[336719499,1725069046333,-1130.445454,0.00032876,7]
[336719500,1725069046343,-856.32,0.00032876,31]
[336719501,1725069046352,-500.22318328,0.00032876,31]
[336719502,1725069046361,-500.0,0.00032876,31]
[336719503,1725069046371,-2096.689727,0.00032876,7]
[336719504,1725069046381,-1130.445454,0.00032876,7]
[336719505,1725069046392,-2096.689727,0.00032876,7]
[336719506,1725069046402,-500.0,0.00032876,31]
[336719507,1725069046413,-500.0,0.00032876,31]
[336719508,1725069046423,-500.0,0.00032876,31]
[336719509,1725069046434,-502.22413995,0.00032876,31]
[336719510,1725069046444,-1087.102022,0.00032876,7]
[336719511,1725069046453,-190.63874133,0.00032876,31]
[336719512,1725069046464,-500.0,0.00032876,31]
[336719513,1725069046475,-508.81,0.00032876,31]
[336719514,1725069046485,-2417.22,0.00032876,31]
[336719515,1725069046495,-151.0,0.00032876,7]
[336719516,1725069046505,-500.0,0.00032876,31]
[336719517,1725069046514,-1087.102022,0.00032876,7]
[336719518,1725069046523,-500.0,0.00032876,31]
[336719519,1725069046533,-500.82691367,0.00032876,31]
[336719520,1725069046543,-500.0,0.00032876,31]
[336719521,1725069046552,-500.79294642,0.00032876,31]
[336719522,1725069046561,-1234.31,0.00032876,31]
[336719523,1725069046571,-500.0,0.00032876,31]
[336719524,1725069046580,-1558.95,0.00032876,31]
[336719525,1725069046590,-500.0,0.00032876,31]
[336719526,1725069046599,-500.0,0.00032876,31]
[336719527,1725069046608,-500.0,0.00032876,31]
[336719528,1725069046618,-501.74594415,0.00032876,31]
[336719529,1725069046627,-500.0,0.00032876,31]
[336719530,1725069046637,-500.0,0.00032876,31]
[336719531,1725069046646,-500.0,0.00032876,31]
[336719532,1725069046655,-2075.63,0.00032876,31]
[336719533,1725069046664,-500.0,0.00032876,31]
[336719534,1725069046673,-500.0,0.00032876,31]
[336719535,1725069046682,-500.0,0.00032876,31]
[336719536,1725069046691,-500.0,0.00032876,31]
[336719537,1725069046700,-519.61660797,0.00032876,31]
[336719538,1725069046709,-502.55157876,0.00032876,31]
[336719539,1725069046718,-309.75121009,0.00032876,31]
[336719540,1725069046727,-585.39185834,0.00032876,31]
[336719541,1725069046736,-503.72180738,0.00032876,31]
[336719542,1725069046745,-384.93599808,0.00032876,31]
[336719543,1725069046754,-335.652014,0.00032876,7]
[336719544,1725069046763,-151.0,0.00032876,7]
[336719545,1725069046772,-500.0,0.00032876,31]
[336719546,1725069046781,-500.0,0.00032876,31]
[336719547,1725069046791,-500.0,0.00032876,31]
[336719548,1725069046802,-151.0,0.00032876,7]
[336719549,1725069046811,-335.652014,0.00032876,7]
[336719550,1725069046820,-500.0,0.00032876,31]
[336719551,1725069046829,-500.0,0.00032876,31]
[336719552,1725069046840,-500.0,0.00032876,31]
[336719553,1725069046849,-500.0,0.00032876,31]
[336719554,1725069046859,-500.0,0.00032876,31]
[336719555,1725069046870,-500.0,0.00032876,31]
[336719556,1725069046879,-500.50693139,0.00032876,31]
[336719557,1725069046889,-500.0,0.00032876,31]
[336719558,1725069046899,-501.16333244,0.00032876,31]
[336719559,1725069046908,-151.729464,0.00032876,7]
[336719560,1725069046917,-503.37792289,0.00032876,31]
[336719561,1725069046927,-500.0,0.00032876,31]
[336719562,1725069046937,-500.0,0.00032876,31]
[336719563,1725069046946,-500.0,0.00032876,31]
[336719564,1725069046955,-171.216108,0.00032876,7]
[336719565,1725069046964,-500.0,0.00032876,31]
[336719566,1725069046974,-500.0,0.00032876,31]
[336719567,1725069046983,-938.85,0.00032876,31]
[336719568,1725069046992,-500.0,0.00032876,31]
[336719569,1725069047001,-500.0,0.00032876,31]
[336719570,1725069047010,-171.216108,0.00032876,7]
[336719571,1725069047019,-501.48328471,0.00032876,31]
[336719572,1725069047028,-4060.15,0.00032876,31]
[336719573,1725069047037,-502.5828018,0.00032876,31]
[336719574,1725069047046,-500.3383801,0.00032876,31]
[336719575,1725069047055,-500.0,0.00032876,31]
[336719576,1725069047065,-500.0,0.00032876,31]
[336719577,1725069047074,-500.0,0.00032876,31]
[336719578,1725069047083,-500.0,0.00032876,31]
[336719579,1725069047092,-270.866214,0.00032876,7]
[336719580,1725069047102,-500.0,0.00032876,31]
[336719581,1725069047111,-500.0,0.00032876,31]
[336719582,1725069047121,-500.0,0.00032876,31]
[336719583,1725069047134,-1337.79,0.00032876,31]
[336719584,1725069047145,-2668.44,0.00032876,31]
[336719585,1725069047156,-501.68851291,0.00032876,31]
[336719586,1725069047166,-500.0,0.00032876,31]
[336719587,1725069047176,-500.97494124,0.00032876,31]
[336719588,1725069047184,-500.0,0.00032876,31]
[336719589,1725069047194,-500.0,0.00032876,31]
[336719590,1725069047203,-500.0,0.00032876,31]
[336719591,1725069047212,-500.0,0.00032876,31]
[336719592,1725069047222,-500.91203932,0.00032876,31]
[336719593,1725069047232,-500.0,0.00032876,31]
[336719594,1725069047243,-500.0,0.00032876,31]
[336719595,1725069047255,-500.28446727,0.00032876,31]
[336719596,1725069047265,-500.0,0.00032876,31]
[336719597,1725069047275,-500.0,0.00032876,31]
[336719598,1725069047284,-500.0,0.00032876,31]
[336719599,1725069047293,-500.0,0.00032876,7]
[336719600,1725069047302,-503.13804404,0.00032876,31]
[336719601,1725069047311,-500.0,0.00032876,31]
[336719602,1725069047321,-151.0,0.00032877,14]
[336719603,1725069047332,-303.0,0.000329,2]
[336719604,1725069047343,-159.0,0.00033,2]
[336719605,1725069047355,-1163.11,0.00033037,31]
[336719606,1725069047364,-1543.42,0.00033037,31]
[336719607,1725069047375,-1473.4690652,0.0003304,2]
[336719608,1725069047386,-609.46,0.00033098,31]
[336719609,1725069047396,-609.46,0.00033139,31]
[336719610,1725069047406,-1163.11,0.00033139,31]
[336719611,1725069047416,-1543.42,0.00033139,31]
[336719612,1725069047427,-151.0,0.0003314,14]
[336719613,1725069047439,-151.908548,0.0003314,14]
[336719614,1725069047450,-151.0,0.0003314,14]
[336719615,1725069047460,-151.0,0.0003314,14]
[336719616,1725069047469,-151.0,0.0003314,14]
[336719617,1725069047478,-151.0,0.0003314,14]
[336719618,1725069047488,-151.0,0.0003314,14]
[336719619,1725069047497,-359.281716,0.0003314,14]
[336719620,1725069047507,-359.281716,0.0003314,14]
[336719621,1725069047517,-151.0,0.0003314,14]
[336719622,1725069047528,-151.580029,0.0003314,14]
[336719623,1725069047538,-158.704747,0.0003314,7]
[336719624,1725069047547,-158.704747,0.0003314,7]
[336719625,1725069047557,-215.84879,0.0003314,14]
[336719626,1725069047568,-215.84879,0.0003314,14]
[336719627,1725069047579,-609.46,0.0003314,31]
[336719628,1725069047589,-609.46,0.0003314,31]
[336719629,1725069047599,-151.0,0.0003314,14]
[336719630,1725069047608,-660.921417,0.0003314,14]
[336719631,1725069047618,-660.921417,0.0003314,14]
[336719632,1725069047629,-1163.11,0.0003314,31]
[336719633,1725069047639,-300.251668,0.0003314,14]
[336719634,1725069047650,-300.251668,0.0003314,14]
[336719635,1725069047659,-210.505677,0.0003314,14]
[336719636,1725069047668,-151.651291,0.0003314,14]
[336719637,1725069047679,-210.505677,0.0003314,14]
[336719638,1725069047690,-151.0,0.0003314,14]
[336719639,1725069047700,-701.335433,0.0003314,14]
[336719640,1725069047710,-701.335433,0.0003314,14]
[336719641,1725069047720,-151.0,0.0003314,14]
[336719642,1725069047730,-151.0,0.0003314,14]
[336719643,1725069047740,-151.0,0.0003314,14]
[336719644,1725069047750,-151.0,0.0003314,14]
[336719645,1725069047759,-236.787607,0.0003314,14]
[336719646,1725069047770,-236.787607,0.0003314,14]
[336719647,1725069047780,-151.0,0.0003314,14]
[336719648,1725069047794,-1543.42,0.0003314,31]
[336719649,1725069047806,-169.39899,0.0003314,14]
[336719650,1725069047816,-169.39899,0.0003314,14]
[336719651,1725069047825,-151.0,0.0003314,14]
[336719652,1725069047835,-151.0,0.0003314,14]
[336719653,1725069047845,-151.0,0.0003314,14]
[336719654,1725069047858,-151.0,0.0003314,14]
[336719655,1725069047868,-151.0,0.0003314,14]
[336719656,1725069047877,-1130.445454,0.0003314,14]
[336719657,1725069047886,-2096.689727,0.0003314,14]
[336719658,1725069047895,-1130.445454,0.0003314,14]
[336719659,1725069047905,-2096.689727,0.0003314,14]
[336719660,1725069047915,-1087.102022,0.0003314,14]
[336719661,1725069047924,-152.003303,0.0003314,14]
[336719662,1725069047933,-1087.102022,0.0003314,14]
[336719663,1725069047942,-1163.11,0.00033148,31]
[336719664,1725069047952,-1543.42,0.00033148,31]
[336719665,1725069047961,-609.46,0.00033149,31]
[336719666,1725069047971,-609.46,0.00033149,31]
[336719667,1725069047980,-609.46,0.00033149,31]
[336719668,1725069047990,-609.46,0.00033149,31]
[336719669,1725069047999,-609.46,0.00033149,31]
[336719670,1725069048009,-609.46,0.00033149,31]
[336719671,1725069048019,-609.46,0.00033149,31]
[336719672,1725069048028,-609.46,0.00033149,31]
[336719673,1725069048037,-609.55233862,0.00033149,31]
[336719674,1725069048047,-1163.11,0.00033149,31]
[336719675,1725069048056,-1163.11,0.00033149,31]
[336719676,1725069048066,-1163.11,0.00033149,31]
[336719677,1725069048075,-1163.11,0.00033149,31]
[336719678,1725069048084,-1163.11,0.00033149,31]
[336719679,1725069048098,-1163.11,0.00033149,31]
[336719680,1725069048107,-1163.2178261,0.00033149,31]
[336719681,1725069048117,-1543.42,0.00033149,31]
[336719682,1725069048127,-1543.42,0.00033149,31]
[336719683,1725069048136,-1543.42,0.00033149,31]
[336719684,1725069048146,-1543.42,0.00033149,31]
[336719685,1725069048155,-1543.42,0.00033149,31]
[336719686,1725069048164,-1543.51497579,0.00033149,31]
[336719687,1725069048173,-151.0,0.0003315,14]
[336719688,1725069048183,-151.0,0.0003315,14]
[336719689,1725069048191,-500.0,0.0003315,31]
[336719690,1725069048200,-507.57419055,0.0003315,31]
[336719691,1725069048209,-500.0,0.0003315,31]
[336719692,1725069048218,-500.0,0.0003315,2]
[336719693,1725069048228,-241.22988231,0.0003315,31]
[336719694,1725069048237,-500.0,0.0003315,31]
[336719695,1725069048246,-500.0,0.0003315,31]
[336719696,1725069048255,-500.0,0.0003315,31]
[336719697,1725069048265,-491.78198204,0.0003315,31]
[336719698,1725069048274,-500.0,0.0003315,31]
[336719699,1725069048283,-500.0,0.0003315,31]
[336719700,1725069048292,-504.02684375,0.0003315,31]
[336719701,1725069048301,-289.2267322,0.0003315,31]
[336719702,1725069048310,-500.0,0.0003315,31]
[336719703,1725069048319,-210.36706454,0.0003315,31]
[336719704,1725069048329,-500.0,0.0003315,31]
[336719705,1725069048339,-500.0,0.0003315,31]
[336719706,1725069048349,-539.95598935,0.0003315,31]
[336719707,1725069048358,-642.87312222,0.0003315,31]
[336719708,1725069048368,-822.4,0.0003315,31]
[336719709,1725069048378,-502.25558466,0.0003315,31]
[336719710,1725069048387,-500.0,0.0003315,31]
[336719711,1725069048397,-500.0,0.0003315,31]
[336719712,1725069048406,-500.0,0.0003315,31]
[336719713,1725069048416,-312.88236608,0.0003315,31]
[336719714,1725069048425,-502.23389764,0.0003315,31]
[336719715,1725069048435,-500.0,0.0003315,31]
[336719716,1725069048444,-504.24263504,0.0003315,31]
[336719717,1725069048454,-500.0,0.0003315,31]
[336719718,1725069048464,-503.8713992,0.0003315,31]
[336719719,1725069048474,-503.72883861,0.0003315,31]
[336719720,1725069048483,-503.36976776,0.0003315,31]
[336719721,1725069048493,-500.0,0.0003315,31]
[336719722,1725069048502,-500.0,0.0003315,31]
[336719723,1725069048512,-318.71959813,0.0003315,31]
[336719724,1725069048522,-500.0,0.0003315,31]
[336719725,1725069048531,-500.0,0.0003315,31]
[336719726,1725069048541,-503.86691287,0.0003315,31]
[336719727,1725069048550,-151.0,0.0003315,14]
[336719728,1725069048560,-151.0,0.0003315,14]
[336719729,1725069048569,-331.26794294,0.0003315,31]
[336719730,1725069048579,-598.31,0.0003315,31]
[336719731,1725069048590,-505.05456563,0.0003315,31]
[336719732,1725069048600,-631.72996089,0.0003315,31]
[336719733,1725069048610,-509.60084696,0.0003315,31]
[336719734,1725069048619,-503.9107301,0.0003315,31]
[336719735,1725069048629,-238.65653643,0.0003315,31]
[336719736,1725069048638,-500.0,0.0003315,31]
[336719737,1725069048648,-500.0,0.0003315,31]
[336719738,1725069048657,-500.0,0.0003315,31]
[336719739,1725069048667,-500.0,0.0003315,31]
[336719740,1725069048676,-503.53899357,0.0003315,31]
[336719741,1725069048685,-151.0,0.0003315,14]
[336719742,1725069048695,-151.0,0.0003315,14]
[336719743,1725069048705,-151.0,0.0003315,14]
[336719744,1725069048715,-151.0,0.0003315,14]
[336719745,1725069048724,-151.0,0.0003315,14]
[336719746,1725069048733,-265.127285,0.0003315,14]
[336719747,1725069048743,-500.0,0.0003315,31]
[336719748,1725069048753,-791.02,0.0003315,31]
[336719749,1725069048762,-196.82011567,0.0003315,31]
[336719750,1725069048771,-500.0,0.0003315,31]
[336719751,1725069048781,-505.3933183,0.0003315,31]
[336719752,1725069048793,-500.0,0.0003315,31]
[336719753,1725069048803,-500.0,0.0003315,31]
[336719754,1725069048813,-500.0,0.0003315,31]
[336719755,1725069048822,-502.99451351,0.0003315,31]
[336719756,1725069048832,-502.51321199,0.0003315,31]
[336719757,1725069048843,-500.0,0.0003315,31]
[336719758,1725069048852,-500.0,0.0003315,31]
[336719759,1725069048862,-500.0,0.0003315,31]
[336719760,1725069048875,-500.0,0.0003315,31]
[336719761,1725069048885,-504.87449606,0.0003315,31]
[336719762,1725069048895,-151.0,0.0003315,14]
[336719763,1725069048905,-151.0,0.0003315,14]
[336719764,1725069048914,-151.0,0.0003315,14]
[336719765,1725069048923,-500.0,0.0003315,31]
[336719766,1725069048933,-631.9000144,0.0003315,31]
[336719767,1725069048942,-501.77096333,0.0003315,31]
[336719768,1725069048952,-226.44343991,0.0003315,31]
[336719769,1725069048961,-151.0,0.0003315,14]
[336719770,1725069048970,-500.0,0.0003315,31]
[336719771,1725069048979,-151.0,0.0003315,14]
[336719772,1725069048990,-226.095126,0.0003315,14]
[336719773,1725069049000,-500.0,0.0003315,31]
[336719774,1725069049010,-502.94101076,0.0003315,31]
[336719775,1725069049019,-500.0,0.0003315,31]
[336719776,1725069049030,-500.0,0.0003315,31]
[336719777,1725069049040,-503.66210895,0.0003315,31]
[336719778,1725069049050,-503.97569524,0.0003315,31]
[336719779,1725069049059,-500.0,0.0003315,31]
[336719780,1725069049069,-500.0,0.0003315,31]
[336719781,1725069049078,-500.0,0.0003315,31]
[336719782,1725069049088,-503.48667988,0.0003315,31]
[336719783,1725069049097,-504.69344925,0.0003315,31]
[336719784,1725069049108,-500.0,0.0003315,31]
[336719785,1725069049118,-500.0,0.0003315,31]
[336719786,1725069049128,-500.0,0.0003315,31]
[336719787,1725069049138,-500.0,0.0003315,31]
[336719788,1725069049148,-500.0,0.0003315,31]
[336719789,1725069049159,-500.0,0.0003315,31]
[336719790,1725069049168,-500.0,0.0003315,31]
[336719791,1725069049178,-504.53495985,0.0003315,31]
[336719792,1725069049187,-504.09163574,0.0003315,31]
[336719793,1725069049197,-257.58766823,0.0003315,31]
[336719794,1725069049206,-500.0,0.0003315,31]
[336719795,1725069049217,-505.75751336,0.0003315,31]
[336719796,1725069049227,-500.0,0.0003315,31]
[336719797,1725069049238,-502.77457391,0.0003315,31]
[336719798,1725069049250,-501.10292826,0.0003315,31]
[336719799,1725069049261,-500.0,0.0003315,31]
[336719800,1725069049272,-500.0,0.0003315,31]
[336719801,1725069049283,-210.63610234,0.0003315,31]
[336719802,1725069049293,-503.51528215,0.0003315,31]
[336719803,1725069049303,-382.83952515,0.0003315,31]
[336719804,1725069049314,-504.09232174,0.0003315,31]
[336719805,1725069049325,-500.0,0.0003315,31]
[336719806,1725069049335,-500.0,0.0003315,31]
[336719807,1725069049345,-260.63288828,0.0003315,31]
[336719808,1725069049356,-502.32240402,0.0003315,31]
[336719809,1725069049366,-609.9011105,0.0003315,31]
[336719810,1725069049376,-500.0,0.0003315,31]
[336719811,1725069049385,-500.0,0.0003315,31]
[336719812,1725069049394,-501.32,0.0003315,31]
[336719813,1725069049404,-500.0,0.0003315,31]
[336719814,1725069049414,-500.0,0.0003315,31]
[336719815,1725069049423,-500.0,0.0003315,31]
[336719816,1725069049433,-500.0,0.0003315,31]
[336719817,1725069049442,-500.0,0.0003315,31]
[336719818,1725069049452,-500.0,0.0003315,31]
[336719819,1725069049461,-422.69993381,0.0003315,31]
[336719820,1725069049849,-150.092,0.00033079,2]
[336719821,1725069049859,-77.30006619,0.0003315,31]
[336719822,1725069049869,-377.57347314,0.0003315,31]
[336719823,1725069049881,-122.42652686,0.0003315,31]
[336719824,1725069049891,-477.57347314,0.0003315,31]
[336719825,1725069049943,-22.42652686,0.0003315,31]
[336719826,1725069049952,-500.0,0.0003315,31]
[336719827,1725069049962,-500.0,0.0003315,31]
[336719828,1725069049971,-500.0,0.0003315,31]
[336719829,1725069049980,-359.281716,0.0003315,14]
[336719830,1725069049990,-359.281716,0.0003315,14]
[336719831,1725069049999,-4.01488112,0.0003315,14]
[336719832,1725069050027,-226.93,0.00032866,3]
[336719833,1725069050037,-38.42819996,0.00032876,31]
[336719834,1725069050049,-461.57180004,0.00032876,31]
[336719835,1725069050058,-229.4518273,0.0003315,14]
[336719836,1725069050070,-125.81500758,0.0003315,14]
[336719837,1725069050079,-359.281716,0.0003315,14]
[336719838,1725069050089,-359.281716,0.0003315,14]
[336719839,1725069050098,-359.281716,0.0003315,14]
[336719840,1725069050108,-504.66275355,0.0003315,31]
[336719841,1725069050118,-500.0,0.0003315,31]
[336719842,1725069050128,-503.27091512,0.0003315,31]
[336719843,1725069050138,-500.0,0.0003315,31]
[336719844,1725069050148,-500.0,0.0003315,31]
[336719845,1725069050160,-502.24486067,0.0003315,31]
[336719846,1725069050170,-500.0,0.0003315,31]
[336719847,1725069050180,-151.0,0.0003315,14]
[336719848,1725069050189,-151.0,0.0003315,14]
[336719849,1725069050199,-500.0,0.0003315,31]
[336719850,1725069050209,-500.0,0.0003315,31]
[336719851,1725069050219,-611.53,0.0003315,31]
[336719852,1725069050230,-325.88006953,0.0003315,31]
[336719853,1725069050240,-158.704747,0.0003315,7]
[336719854,1725069050250,-158.704747,0.0003315,7]
[336719855,1725069050260,-505.04719608,0.0003315,31]
[336719856,1725069050270,-500.0,0.0003315,31]
[336719857,1725069050279,-158.704747,0.0003315,7]
[336719858,1725069050289,-158.704747,0.0003315,7]
[336719859,1725069050299,-522.57008256,0.0003315,31]
[336719860,1725069050310,-862.28,0.0003315,31]
[336719861,1725069050322,-508.09731326,0.0003315,31]
[336719862,1725069050332,-215.84879,0.0003315,14]
[336719863,1725069050342,-215.84879,0.0003315,14]
[336719864,1725069050354,-500.0,0.0003315,31]
[336719865,1725069050364,-500.0,0.0003315,31]
[336719866,1725069050375,-215.84879,0.0003315,14]
[336719867,1725069050531,-215.84879,0.0003315,14]
[336719868,1725069050541,-500.0,0.0003315,31]
[336719869,1725069050552,-503.54167908,0.0003315,31]
[336719870,1725069050561,-500.0,0.0003315,31]
[336719871,1725069050571,-500.0,0.0003315,31]
[336719872,1725069050581,-500.0,0.0003315,31]
[336719873,1725069050592,-500.0,0.0003315,31]
[336719874,1725069050601,-501.97989687,0.0003315,31]
[336719875,1725069050611,-500.0,0.0003315,31]
[336719876,1725069050623,-500.0,0.0003315,31]
[336719877,1725069050632,-457.34754036,0.0003315,31]
[336719878,1725069050642,-501.52800075,0.0003315,31]
[336719879,1725069050652,-500.0,0.0003315,31]
[336719880,1725069050664,-500.0,0.0003315,31]
[336719881,1725069050675,-504.00728814,0.0003315,31]
[336719882,1725069050684,-500.0,0.0003315,31]
[336719883,1725069050695,-500.0,0.0003315,31]
[336719884,1725069050705,-500.0,0.0003315,31]
[336719885,1725069050714,-309.00000001,0.0003315,31]
[336719886,1725069050724,-500.0,0.0003315,31]
[336719887,1725069050733,-501.0916789,0.0003315,31]
[336719888,1725069050743,-500.0,0.0003315,31]
[336719889,1725069050753,-586.23991873,0.0003315,31]
[336719890,1725069050764,-150.81388474,0.0003315,31]
[336719891,1725069050773,-500.0,0.0003315,31]
[336719892,1725069050783,-501.93328356,0.0003315,31]
[336719893,1725069050794,-500.0,0.0003315,31]
[336719894,1725069050804,-660.921417,0.0003315,14]
[336719895,1725069050813,-660.921417,0.0003315,14]
[336719896,1725069050823,-660.921417,0.0003315,14]
[336719897,1725069050835,-660.921417,0.0003315,14]
[336719898,1725069050845,-500.0,0.0003315,31]
[336719899,1725069050855,-660.921417,0.0003315,14]
[336719900,1725069050865,-660.921417,0.0003315,14]
[336719901,1725069050874,-328.61599838,0.0003315,31]
[336719902,1725069050885,-247.72171837,0.0003315,7]
[336719903,1725069050894,-505.73591466,0.0003315,31]
[336719904,1725069050904,-504.43676146,0.0003315,31]
[336719905,1725069050914,-862.37,0.0003315,31]
[336719906,1725069050924,-500.0,0.0003315,31]
[336719907,1725069050933,-500.0,0.0003315,31]
[336719908,1725069050943,-504.93559069,0.0003315,31]
[336719909,1725069050953,-500.0,0.0003315,31]
[336719910,1725069050962,-503.56619552,0.0003315,31]
[336719911,1725069050972,-470.13078215,0.0003315,31]
[336719912,1725069050981,-159.85568422,0.0003315,31]
[336719913,1725069050991,-500.0,0.0003315,31]
[336719914,1725069051000,-300.251668,0.0003315,14]
[336719915,1725069051009,-300.251668,0.0003315,14]
[336719916,1725069051018,-300.251668,0.0003315,14]
[336719917,1725069051027,-500.0,0.0003315,31]
[336719918,1725069051036,-500.0,0.0003315,31]
[336719919,1725069051046,-300.251668,0.0003315,14]
[336719920,1725069051055,-300.251668,0.0003315,14]
[336719921,1725069051064,-300.251668,0.0003315,14]
[336719922,1725069051073,-500.0,0.0003315,31]
[336719923,1725069051082,-500.0,0.0003315,31]
[336719924,1725069051091,-500.0,0.0003315,31]
[336719925,1725069051101,-507.87950896,0.0003315,31]
[336719926,1725069051110,-500.0,0.0003315,31]
[336719927,1725069051119,-210.505677,0.0003315,14]
[336719928,1725069051129,-210.505677,0.0003315,14]
[336719929,1725069051138,-210.505677,0.0003315,14]
[336719930,1725069051148,-500.0,0.0003315,31]
[336719931,1725069051157,-174.8266077,0.0003315,31]
[336719932,1725069051166,-503.19515499,0.0003315,31]
[336719933,1725069051176,-210.505677,0.0003315,14]
[336719934,1725069051185,-210.505677,0.0003315,14]
[336719935,1725069051194,-210.505677,0.0003315,14]
[336719936,1725069051203,-505.15729021,0.0003315,31]
[336719937,1725069051212,-500.0,0.0003315,31]
[336719938,1725069051222,-620.85727372,0.0003315,31]
[336719939,1725069051231,-641.91947353,0.0003315,31]
[336719940,1725069051241,-151.0,0.0003315,14]
[336719941,1725069051250,-701.335433,0.0003315,14]
[336719942,1725069051259,-701.335433,0.0003315,14]
[336719943,1725069051268,-151.0,0.0003315,14]
[336719944,1725069051277,-701.335433,0.0003315,14]
[336719945,1725069051285,-151.0,0.0003315,14]
[336719946,1725069051294,-701.335433,0.0003315,14]
[336719947,1725069051303,-151.0,0.0003315,14]
[336719948,1725069051313,-701.335433,0.0003315,14]
[336719949,1725069051322,-701.335433,0.0003315,14]
[336719950,1725069051331,-151.0,0.0003315,14]
[336719951,1725069051342,-151.0,0.0003315,14]
[336719952,1725069051356,-500.0,0.0003315,31]
[336719953,1725069051365,-500.0,0.0003315,31]
[336719954,1725069051375,-280.152631,0.0003315,14]
[336719955,1725069051385,-500.0,0.0003315,31]
[336719956,1725069051394,-457.23586965,0.0003315,31]
[336719957,1725069051405,-500.0,0.0003315,31]
[336719958,1725069051414,-506.38200869,0.0003315,31]
[336719959,1725069051423,-151.0,0.0003315,14]
[336719960,1725069051433,-151.0,0.0003315,14]
[336719961,1725069051442,-151.0,0.0003315,14]
[336719962,1725069051451,-500.0,0.0003315,31]
[336719964,1725069051460,-534.47,0.0003315,31]
[336719965,1725069051470,-500.0,0.0003315,31]
[336719966,1725069051479,-502.97267949,0.0003315,31]
[336719967,1725069051489,-2192.65,0.0003315,31]
[336719968,1725069051499,-500.0,0.0003315,31]
[336719969,1725069051509,-505.83095056,0.0003315,31]
[336719970,1725069051518,-500.0,0.0003315,31]
[336719971,1725069051528,-729.71,0.0003315,31]
[336719972,1725069051538,-504.16149316,0.0003315,31]
[336719973,1725069051547,-151.0,0.0003315,14]
[336719974,1725069051556,-4062.05,0.0003315,31]
[336719975,1725069051565,-151.0,0.0003315,14]
[336719976,1725069051574,-151.0,0.0003315,14]
[336719977,1725069051584,-236.787607,0.0003315,14]
[336719978,1725069051596,-236.787607,0.0003315,14]
[336719979,1725069051605,-236.787607,0.0003315,14]
[336719980,1725069051614,-500.0,0.0003315,31]
[336719981,1725069051623,-500.0,0.0003315,31]
[336719982,1725069051635,-236.787607,0.0003315,14]